Cogmind - Beta 9.4 @@@ ROGUE MODE // 2020.03.29 @ 19:48:17 // Winter2019/RPGLIKE Player: IAMCRAIG Result: Smashed by cave-in Performance ------------- Evolutions (0) 0 Regions Visited (2) 400 Robots Destroyed (37) 185 Value Destroyed (670) 670 Prototype IDs (3) 60 Alien Tech Used (0) 0 Bonus (7) 7 TOTAL SCORE: 1322 Bonus ------- Follower Combat Kills 7 Cogmind --------- Core Integrity 0/600 Matter 300/300 Energy 293/310 System Corruption 4% Temperature Cool (0) Movement Flying (34) Location -10/Mines Parts ------- > --- POWER (1) -------- Fission Core > --- PROPULSION (3) --- Flight Unit Flight Unit Flight Unit > --- UTILITY (3) ------ Improved Heat Sink Improved Heat Sink Experimental Sensor Array > --- WEAPON (2) ------- Beamcaster Mining Laser > --- INVENTORY (2) ---- High-capacity Battery (400) High-capacity Matter Pod (200) Peak State ------------ > --- POWER ------------ Fission Core > --- PROPULSION ------- Flight Unit Flight Unit Flight Unit > --- UTILITY ---------- Improved Heat Sink Improved Heat Sink Experimental Sensor Array > --- WEAPON ----------- Beamcaster Mining Laser > --- INVENTORY -------- High-capacity Battery High-capacity Matter Pod [Rating: 26] Favorites ----------- Power Fission Core Engine Light Ion Engine Power Core Fission Core Propulsion Flight Unit Treads Light Treads Wheel Wheel Hover Unit Hover Unit Flight Unit Flight Unit Utility Improved Heat Sink Device Improved Heat Sink Storage High-capacity Matter Pod Processor Targeting Computer Weapon Medium Laser Energy Gun Medium Laser Special Weapon Mining Laser Build | -11 -10 -10 ------- Run | Scr Mat Min Slots Evolved 5 | 3 . 2 Power . | . . . Propulsion 2 | 1 . 1 Utility 2 | 1 . 1 Weapon 1 | 1 . . Parts Attached 37 | 6 9 22 Power 3 | 1 1 1 Engine 2 | 1 1 . Core 1 | . . 1 Reactor . | . . . Propulsion 19 | 2 3 14 Treads 2 | 1 1 . Leg . | . . . Wheel 1 | 1 . . Hover 2 | . 2 . Flight 14 | . . 14 Utility 8 | 1 4 3 Device 6 | 1 2 3 Storage 1 | . 1 . Processor 1 | . 1 . Hackware . | . . . Protection . | . . . Artifact . | . . . Weapon 7 | 2 1 4 Energy Gun 4 | 2 1 1 Energy Cannon . | . . . Ballistic Gun . | . . . Ballistic Cannon . | . . . Launcher . | . . . Special Weapon 3 | . . 3 Impact Weapon . | . . . Slashing Weapon . | . . . Piercing Weapon . | . . . Special Melee Weapon . | . . . Unidentified Prototypes 1 | . . 1 Parts Lost 1 | . . 1 Power . | . . . Propulsion 1 | . . 1 Utility . | . . . Weapon . | . . . Highest Loss Streak 1 | . . 1 Average Slot Usage (%) 99 | . 99 99 Engine 5 | . 14 1 Core 6 | . . 10 Treads 2 | . 7 . Wheel 2 | . 7 . Hover 5 | . 13 . Flight 21 | . . 32 Device 20 | . 14 24 Processor 7 | . 13 4 Energy Gun 21 | . 28 17 Special Weapon 4 | . . 6 Naked Turns . | . . . Heaviest Build 19 | 8 12 19 Greatest Support 28 | 25 28 22 Greatest Overweight (x) 1 | . . 1 Average Overweight (x) . | . . . Largest Inventory Capacity 2 | 1 2 2 Average Capacity 1 | . 1 2 Most Carried 2 | 1 2 2 Average Carried 1 | . 1 2 Final Capacity 2 | 1 2 2 Final Carried 2 | 1 2 2 Class Distribution -------------------- 57% | Scavenger-Mutant 42% | Mutant Dominant Class ---------------- Mutant | -10/Materials Scavenger-Mutant | -10/Mines Resources | -11 -10 -10 ----------- Run | Scr Mat Min Matter Collected 779 | 260 290 229 Remotely . | . . . Salvage Created 780 | 22 360 398 Parts 49 | 3 28 18 Haulers Intercepted 1 | . 1 . Recyclers Shooed 1 | 1 . . Parts Field Recycled . | . . . Retrieved Matter . | . . . Parts Self-Destructed . | . . . Prevented . | . . . Kills | -11 -10 -10 ------- Run | Scr Mat Min Combat Hostiles Destroyed 28 | . 8 20 Guns 27 | . 7 20 Classes Destroyed 7 | 1 5 1 Worker 4 | . 3 1 Tunneler 1 | 1 . . Hauler 1 | . 1 . Watcher 3 | . 3 . Swarmer 10 | . 3 7 Grunt 11 | . 5 6 Assembled 7 | . . 7 Best Kill Streak 5 | 1 4 5 Combat Bots Only 5 | . 2 5 Max Kills in Single Turn 2 | 1 2 1 Gunslinging . | . . . Exploded . | . . . Melee . | . . . Uniques/NPCs Destroyed . | . . . Combat | -11 -10 -10 -------- Run | Scr Mat Min Damage Taken 1595 | . 239 1356 Core 1285 | . 189 1096 Absorbed by Shields . | . . . Redirected to Core 1094 | . 173 921 Core Remaining (%) 100 | 100 . . Volleys Fired 229 | 3 52 174 Largest 2 | 2 2 2 Hottest 125 | 100 100 125 Shots Fired 326 | 6 104 216 Gun 223 | 6 104 113 Cannon . | . . . Launcher . | . . . Special 103 | . . 103 Kinetic . | . . . Thermal 326 | 6 104 216 Explosive . | . . . Electromagnetic . | . . . Robot Hit Streak 8 | 3 8 6 Robot Miss Streak 5 | 1 5 4 Penetration Max . | . . . Secondary Targets 2 | . . 2 Max Gunslinging Chain 1 | . . 1 Shots Hit Robots 116 | 4 52 60 Core Hits 56 | 2 22 32 Critical Hits . | . . . Critical Kills . | . . . Critical Parts Destroyed . | . . . Melee Attacks . | . . . Impact . | . . . Slashing . | . . . Piercing . | . . . Sneak Attacks . | . . . Combat Hostiles . | . . . Follow-up Attacks . | . . . Damage Inflicted 1830 | 50 706 1074 Guns 1723 | 50 706 967 Cannons . | . . . Explosions 83 | . . 83 Melee . | . . . Ramming . | . . . Kinetic . | . . . Thermal 1830 | 50 706 1074 Explosive . | . . . Electromagnetic . | . . . Impact . | . . . Slashing . | . . . Piercing . | . . . Highest Corruption 4 | . 2 4 Average Corruption 2 | . 1 2 Corruption Purged . | . . . Effects 23 | . 4 19 Message Errors 7 | . . 7 Matter Fused 1 | . . 1 Heat Flow Errors 3 | . . 3 Energy Discharges 4 | . 1 3 Data Loss (minor) 1 | . 1 . Targeting Errors 7 | . 2 5 Overload Shots . | . . . Overflow Damage . | . . . Projectiles . | . . . Explosions . | . . . Melee . | . . . Knockbacks . | . . . Impact . | . . . Kinetic . | . . . Secondary . | . . . Self-Inflicted Damage . | . . . Shots . | . . . Rammed . | . . . Targets Rammed . | . . . Kicked . | . . . Crushed . | . . . Highest Temperature 348 | 137 143 348 Average Temperature 62 | 77 21 83 Received Heat Transfer 412 | . 93 319 Effects 5 | . . 5 Energy Bleed 1 | . . 1 Interference 4 | . . 4 Siege Activations . | . . . Robots Corrupted . | . . . Combat Hostiles . | . . . Parts Fried . | . . . Impact Corruptions . | . . . Robots Melted 1 | . 1 . Combat Hostiles 1 | . 1 . Parts Melted 7 | . 3 4 Heat Transferred 4553 | 148 2035 2370 Parts Sabotaged . | . . . Parts Stolen . | . . . Parts Stripped . | . . . Power Chain Reactions . | . . . Missiles Intercepted . | . . . Alert | -11 -10 -10 ------- Run | Scr Mat Min Peak Influence 308 | 5 177 308 Average Influence 123 | 1 88 149 Maximum Alert Level 1 | . . 1 Low Security (%) 91 | 100 100 86 Level 1 8 | . . 13 Level 2 . | . . . Level 3 . | . . . Level 4 . | . . . Level 5 . | . . . High Security . | . . . Max Security . | . . . Squads Dispatched 2 | . 2 . Investigation 1 | . 1 . Extermination . | . . . Reinforcement 1 | . 1 . Assault . | . . . Garrison . | . . . Intercept . | . . . Construction Impeded . | . . . Haulers Reinforced . | . . . Stealth | -11 -10 -10 --------- Run | Scr Mat Min Distress Signals 2 | . 1 1 Communications Jammed . | . . . Distress Signals . | . . . Times Spotted 60 | . 20 40 Peak Tracking Total 10 | . 3 10 Tactical Retreats 11 | . 2 9 Traps | -11 -10 -10 ------- Run | Scr Mat Min Traps Triggered 2 | . 2 . Indirectly . | . . . Trap Hack Attempts . | . . . Triggered . | . . . Disarmed . | . . . Reprogrammed . | . . . Reused . | . . . Traps Extracted . | . . . Installed 4 | . . 4 Triggered . | . . . Machines | -11 -10 -10 ---------- Run | Scr Mat Min Machines Disabled 7 | . . 7 Max in Single Turn 2 | . . 2 Machines Sabotaged . | . . . Garrisons Compromised . | . . . Overloaded Fab Kills . | . . . Fab Network Shutdowns . | . . . Hacking | -11 -10 -10 --------- Run | Scr Mat Min Machines Accessed 9 | . 8 1 Terminals 8 | . 7 1 Fabricators . | . . . Repair Stations . | . . . Recycling Units 1 | . 1 . Scanalyzers . | . . . Garrison Access . | . . . Total Hacks 32 | . 29 3 Successful 19 | . 18 1 Failed 12 | . 10 2 Catastrophic 1 | . 1 . Database Lockouts 1 | . 1 . Manual 26 | . 25 1 Terminals 30 | . 27 3 Fabricators . | . . . Repair Stations . | . . . Recycling Units 2 | . 2 . Scanalyzers . | . . . Garrison Access . | . . . Terminal Hacks 7 | . 6 1 Record 1 | . 1 . Robot Analysis 2 | . 2 . Prototype ID Bank 1 | . 1 . Terminal Index 1 | . 1 . Recall Investigation 1 | . 1 . Zone Layout 1 | . . 1 Fabricator Hacks . | . . . Repair Station Hacks . | . . . Recycling Unit Hacks 1 | . 1 . Report Inventory 1 | . 1 . Scanalyzer . | . . . Garrison Access Hacks . | . . . Unauthorized Hacks 25 | . 25 . Terminals 10 | . 10 . Track 1 | . 1 . Assimilate 1 | . 1 . Botnet 7 | . 7 . Operators 1 | . 1 . Fabricators . | . . . Repair Stations . | . . . Recycling Units 1 | . 1 . Reject 1 | . 1 . Scanalyzers . | . . . Garrison Access . | . . . Data Cores Recovered . | . . . Used . | . . . Hacking Detections 8 | . 7 1 Full Trace Events 1 | . . 1 Feedback Events . | . . . Feedback Blocked . | . . . Robot Schematics Acquired . | . . . Robots Built . | . . . Matter . | . . . Time . | . . . Total Robot Build Rating . | . . . Part Schematics Acquired . | . . . Parts Built . | . . . Matter . | . . . Time . | . . . Total Part Build Rating . | . . . Parts Repaired . | . . . Time . | . . . Parts Recycled . | . . . Recycled Matter . | . . . Retrieved Matter . | . . . Retrieved Components . | . . . Parts Scanalyzed . | . . . Part Schematics Acquired . | . . . Parts Damaged . | . . . Bothacking | -11 -10 -10 ------------ Run | Scr Mat Min Used RIF Installer . | . . . Robots Hacked . | . . . Non-combat . | . . . Combat . | . . . Robot Hacks Applied . | . . . Relay Couplers Released . | . . . Robots Rewired . | . . . Allies Hacked . | . . . Hacks Repelled . | . . . Allies | -11 -10 -10 -------- Run | Scr Mat Min Total Allies 1 | . . 1 Largest Group 1 | . . 1 Highest-Rated Group 31 | . . 31 Highest-Rated Ally 31 | . . 31 Total Orders . | . . . Ally Attacks 6 | . . 6 Total Damage 60 | . . 60 Kills 3 | . . 3 Allies Corrupted . | . . . Allies Melted . | . . . Intel | -11 -10 -10 ------- Run | Scr Mat Min Robot Analysis Total 2 | . 2 . Derelict Logs Recovered 2 | . . 2 Drone Launches . | . . . Drone Recoveries . | . . . Exploration | -11 -10 -10 ------------- Run | Scr Mat Min Turns Passed 2210 | 75 757 1378 Spaces Moved 2486 | 64 774 1648 Core 10 | 10 . . Treads 17 | 9 8 . Legs . | . . . Wheels 399 | 45 354 . Hover 416 | . 412 4 Flight 1644 | . . 1644 Fastest Speed 34 | 50 56 34 Average Speed 47 | 86 68 36 Slowest Speed 160 | 160 160 117 Overloaded Moves . | . . . Propulsion Burnouts . | . . . Robots Hopped 7 | . . 7 Cave-ins Triggered 3 | . . 3 Exploration Rate (%) 66 | 3 97 100 Regions Visited 2 Branch Regions 1 Pre-discovered Areas 3 | . . 3 Known Exits Taken . | . . . Unknown Exits Taken 2 | 1 1 . Scrap Searched . | . . . Spaces Dug 98 | . . 98 Terrain Destroyed 136 | . . 136 Melee . | . . . Projectile 98 | . . 98 AOE 38 | . . 38 Actions | -11 -10 -10 --------- Run | Scr Mat Min Total 2976 | 75 900 2001 Wait 159 | . 44 115 Move 2470 | 63 773 1634 Hop 7 | . . 7 Pick Up 3 | 2 1 . Fast Attach 20 | 6 6 8 Attach . | . . . Detach 2 | . 1 1 Swap 17 | . 3 14 Drop 27 | 1 8 18 Fire 229 | 3 52 174 Melee . | . . . Ram . | . . . Kick . | . . . Crush . | . . . Escape Stasis . | . . . Rewire . | . . . Trap 4 | . . 4 Miscellaneous 38 | . 12 26 Route ------- -11/Scrapyard -10/Materials (discovered 5 exits: [*Mat x3] / *Min x2) -10/Mines (discovered 2 exits: [*Mat x2]) History --------- Turn | Location | Event 21 | -11/Scrapyard | Upgraded with Propulsion slot (x1) 21 | -11/Scrapyard | Upgraded with Utility slot (x1) 21 | -11/Scrapyard | Upgraded with Weapon slot (x1) 26 | -11/Scrapyard | Discovered new exit (range 16) 76 | -11/Scrapyard | Entered Materials 134 | -10/Materials | Discovered new exit (range 16) 177 | -10/Materials | Discovered new exit (range 14) 267 | -10/Materials | Discovered new exit (range 6) 303 | -10/Materials | Build established: Mutant 312 | -10/Materials | Central database locked down 457 | -10/Materials | Discovered new exit (range 15) 638 | -10/Materials | Discovered new exit (range 9) 833 | -10/Materials | Entered Mines 835 | -10/Mines | Reached level 2 842 | -10/Mines | Escorted by a lone wolf Derelict 862 | -10/Mines | Learned location of Storage (-8) 953 | -10/Mines | Assembled infested the area 958 | -10/Mines | Assisted by a Guerilla fighting off Assembled 982 | -10/Mines | Upgraded with Propulsion slot (x1) 1148 | -10/Mines | Discovered new exit (range 11) 1152 | -10/Mines | Discovered new exit (range 14) 1239 | -10/Mines | Build established: Scavenger-Mutant 1343 | -10/Mines | Reached level 3 1356 | -10/Mines | Found a hidden stash of uninstalled traps 1376 | -10/Mines | Found a damaged Exp. Sensor Array with a note attached 1377 | -10/Mines | Found Prototype Device 1377 | -10/Mines | Identified Exp. Sensor Array 1471 | -10/Mines | Upgraded with Utility slot (x1) 1877 | -10/Mines | Crushed by falling debris 2124 | -10/Mines | Crushed by falling debris 2124 | -10/Mines | Core integrity fell below 50% 2212 | -10/Mines | Crushed by falling debris 2212 | -10/Mines | Smashed by cave-in Last Messages --------------- 01943_ Extracted 9 matter. 01948_ System corrupted: Energy discharge (-120). 01974_ K-01 Serf collects debris. 01977_ Particle Gun melted. 01977_ G-47 Trooper destroyed. 01978_ K-01 Serf collects debris. 01982_ DZR5XCMFK6FA9P6WY3OHHM 01982_ K-01 Serf collects debris. 02004_ K-01 Serf destroyed. 02029_ System corrupted: Energy discharge (-120). 02039_ System corrupted: Mining Laser targeting data glitched. 02069_ System corrupted: Matter fused (-9). 02106_ Acquired 9 matter. 02124_ The unstable cave ceiling collapses. 02124_ Crushed by falling debris. 02128_ QLP7%B,CZOJKLU